Workbook

Sheet Детский сад
A1: Категория: | B1: Дети 3-7 лет
A3: День 1
A4: Прием пищи | B4: Наименование блюда | C4: Выход блюда | D4: Пищевые вещества, г | G4: Энергет. ценность, ккал | H4: Витамин С | I4: № рецептуры
D5: Б | E5: Ж | F5: У
A6: ЗАВТРАК | B6: Каша вязкая молочная с хлопьями овсяными Геркулес | C6: 180 | D6: 5.72 | E6: 7.66 | F6: 19.67 | G6: 168.30 | H6: 1.76 | I6: 93
A7: ЗАВТРАК | B7: Чай с молоком | C7: 180 | D7: 2.67 | E7: 2.34 | F7: 10.31 | G7: 89.00 | H7: 0.00 | I7: 413
A8: ЗАВТРАК | B8: Бутерброд с маслом | C8: 40 | D8: 2.01 | E8: 3.87 | F8: 12.13 | G8: 91.33 | H8: 0.00 | I8: 1
A9: ИТОГО ПО ПРИЕМУ ПИЩИ: | C9: 400 | D9: =SUM(D6:D8) -> 10.40 | E9: =SUM(E6:E8) -> 13.87 | F9: =SUM(F6:F8) -> 42.11 | G9: =SUM(G6:G8) -> 348.63 | H9: =SUM(H6:H8) -> 1.76
A10: ЗАВТРАК 2 | B10: Сок яблочный | C10: 200 | D10: 0.00 | E10: 0.00 | F10: 22.40 | G10: 90.00 | H10: 6.00 | I10: 399
A11: ИТОГО ПО ПРИЕМУ ПИЩИ: | C11: =SUM(C10) -> 200 | D11: 0.00 | E11: 0.00 | F11: 22.40 | G11: 90.00 | H11: 6.00
A12: ОБЕД | B12: Щи из свежей капусты с мясом | C12: 200 | D12: 3.68 | E12: 7.07 | F12: 8.58 | G12: 118.00 | H12: 19.41 | I12: 56
A13: ОБЕД | B13: Плов с мясом говядины | C13: 150 | D13: 14.17 | E13: 11.96 | F13: 25.08 | G13: 264.00 | H13: 0.38 | I13: 304
A14: ОБЕД | B14: Салат из свеклы | C14: 50 | D14: 0.71 | E14: 3.04 | F14: 4.18 | G14: 46.95 | H14: 4.75 | I14: 33
A15: ОБЕД | B15: Компот из сушёных фруктов | C15: 180 | D15: 0.44 | E15: 0.02 | F15: 27.77 | G15: 113.00 | H15: 0.40 | I15: 394
A16: ОБЕД | B16: Хлеб ржаной | C16: 50 | D16: 0.76 | E16: 0.55 | F16: 21.95 | G16: 94.00 | H16: 0.00 | I16: 1
A17: ИТОГО ПО ПРИЕМУ ПИЩИ: | C17: =SUM(C12:C16) -> 630 | D17: 19.76 | E17: 22.64 | F17: 87.56 | G17: 635.95 | H17: 24.94
A18: ПОЛДНИК | B18: Кефир | C18: 190 | D18: 5.32 | E18: 4.75 | F18: 7.60 | G18: 95.00 | H18: 1.33 | I18: 401
A19: ПОЛДНИК | B19: Печенье | C19: 20 | D19: 1.62 | E19: 1 ,74 | F19: 14.70 | G19: 81.40 | H19: 0.00 | I19: 151
A20: ПОЛДНИК | B20: Плоды свежие | C20: 100 | D20: 0.40 | E20: 0.00 | F20: 9.78 | G20: 94.00 | H20: 3.99 | I20: 338
A21: ИТОГО ПО ПРИЕМУ ПИЩИ: | C21: =SUM(C18:C20) -> 310 | D21: 7.34 | E21: 4.75 | F21: 32.08 | G21: 270.40 | H21: 5.32
A22: УЖИН | B22: Запеканка из творога | C22: 180 | D22: 8.85 | E22: 6.10 | F22: 25.77 | G22: 232.94 | H22: 0.21 | I22: 237
A23: УЖИН | B23: Соус молочный сладкий | C23: 30 | D23: 0.72 | E23: 2.76 | F23: 3.38 | G23: 21.00 | H23: 0.00 | I23: 350
A24: УЖИН | B24: Чай с сахаром | C24: 200 | D24: 1.68 | E24: 0.00 | F24: 12.58 | G24: 70.20 | H24: 0.00 | I24: 411
A25: УЖИН | B25: Бутерброд с повидлом | C25: 50 | D25: 2.03 | E25: 3.21 | F25: 22.55 | G25: 130.67 | H25: 0.08 | I25: 2
A26: ИТОГО ПО ПРИЕМУ ПИЩИ: | C26: =SUM(C22:C25) -> 460 | D26: =SUM(D22:D25) -> 13.28 | E26: 12.07 | F26: 64.28 | G26: 454.81 | H26: 0.29
A27: ИТОГО ЗА ДЕНЬ: | C27: =C26+C21+C17+C11+C9 -> 2000 | D27: 50.78 | E27: 53.33 | F27: 248.43 | G27: 1799.79 | H27: 38.31
A29: День 2
A30: Прием пищи | B30: Наименование блюда | C30: Выход блюда | D30: Пищевые вещества, г | G30: Энергет. ценность, ккал | H30: Витамин С | I30: № рецептуры
D31: Б | E31: Ж | F31: У
A32: ЗАВТРАК | B32: Каша вязкая манная молочная | C32: 170 | D32: 5.28 | E32: 6.35 | F32: 21.33 | G32: 162.99 | H32: 1.66 | I32: 88
A33: ЗАВТРАК | B33: Кофейный напиток с молоком | C33: 180 | D33: 2.85 | E33: 2.41 | F33: 14.36 | G33: 91.00 | H33: 1.17 | I33: 395
A34: ЗАВТРАК | B34: Бутерброд с маслом | C34: 50 | D34: 2.81 | E34: 3.97 | F34: 16.96 | G34: 114.66 | H34: 0.00 | I34: 1
A35: ИТОГО ПО ПРИЕМУ ПИЩИ: | C35: 400 | D35: =SUM(D32:D34) -> 10.94 | E35: =SUM(E32:E34) -> 12.73 | F35: =SUM(F32:F34) -> 52.65 | G35: =SUM(G32:G34) -> 368.65 | H35: =SUM(H32:H34) -> 2.83
A36: ЗАВТРАК 2 | B36: Компот из свежих плодов и ягод | C36: 200 | D36: 0.14 | E36: 10.90 | F36: =10.94*2 -> 21.88 | G36: 90.00 | H36: 0.88 | I36: 372
A37: ИТОГО ПО ПРИЕМУ ПИЩИ: | C37: =SUM(C36) -> 200 | D37: 0.14 | E37: 10.90 | F37: 21.88 | G37: 90.00 | H37: 0.88
A38: ОБЕД | B38: Хлеб ржаной | C38: 50 | D38: 0.76 | E38: 0.55 | F38: 21.95 | G38: 94.00 | H38: 0.00 | I38: 1
A39: ОБЕД | B39: Суп " Полевой" с мясом | C39: 200 | D39: 4.70 | E39: 7.99 | F39: 11.58 | G39: 137.03 | H39: 6.43 | I39: 80
A40: ОБЕД | B40: Котлета из говядины | C40: 70 | D40: 8.84 | E40: 11.02 | F40: 5.13 | G40: 125.00 | H40: 0.81 | I40: 161
A41: ОБЕД | B41: Капуста тушёная | C41: 130 | D41: 2.62 | E41: 4.91 | F41: 8.79 | G41: 94.90 | H41: 15.86 | I41: 200
A42: ОБЕД | B42: Икра кабачковая | C42: 60 | D42: 0.72 | E42: 2.83 | F42: 4.63 | G42: 46.80 | H42: 5.76 | I42: 53
A43: ОБЕД | B43: Кисель из свежемороженых ягод | C43: 190 | D43: 0.00 | E43: 0.00 | F43: 9.19 | G43: 136.17 | H43: 21.11 | I43: 233
A44: ИТОГО ПО ПРИЕМУ ПИЩИ: | C44: =SUM(C38:C43) -> 700 | D44: 17.64 | E44: 27.30 | F44: 61.27 | G44: 633.90 | H44: 49.97
A45: ПОЛДНИК | B45: Кефир | C45: 190 | D45: 5.32 | E45: 4.75 | F45: 7.60 | G45: 95.00 | H45: 1.33 | I45: 401
A46: ПОЛДНИК | B46: Печенье | C46: 20 | D46: 1.62 | E46: 1.74 | F46: 14.70 | G46: 81.40 | H46: 0.00 | I46: 151
A47: ПОЛДНИК | B47: Плоды свежие | C47: 100 | D47: 0.40 | E47: 0.00 | F47: 9.78 | G47: 94.00 | H47: 3.99 | I47: 338
A48: ИТОГО ПО ПРИЕМУ ПИЩИ: | C48: =SUM(C45:C47) -> 310 | D48: 7.34 | E48: 6.49 | F48: 32.08 | G48: 270.40 | H48: 5.32
A49: УЖИН | B49: Макароны отварные с маслом | C49: 160 | D49: 4.48 | E49: 2.10 | F49: 33.07 | G49: 147.20 | H49: 0.00 | I49: 10
A50: УЖИН | B50: Яйца варёные | C50: 40 | D50: 5.08 | E50: 4.60 | F50: 0.28 | G50: 63.00 | H50: 0.00 | I50: 213
A51: УЖИН | B51: Чай с сахаром | C51: 200 | D51: 1.68 | E51: 0.00 | F51: 12.58 | G51: 70.20 | H51: 0.00 | I51: 411
A52: УЖИН | B52: Булочка молочная | C52: 50 | D52: 4.71 | E52: 1.57 | F52: 32.29 | G52: 161.43 | H52: 0.14 | I52: 477
A53: ИТОГО ПО ПРИЕМУ ПИЩИ: | C53: =SUM(C49:C52) -> 450 | D53: 15.95 | E53: 8.27 | F53: 78.21 | G53: 441.83 | H53: 0.14
A54: ИТОГО ЗА ДЕНЬ: | C54: =C53+C48+C44+C37+C35 -> 2060 | D54: 52.01 | E54: 65.68 | F54: 246.09 | G54: 1804.78 | H54: 59.15
A56: День 3
A57: Прием пищи | B57: Наименование блюда | C57: Выход блюда | D57: Пищевые вещества, г | G57: Энергет. ценность, ккал | H57: Витамин С | I57: № рецептуры
D58: Б | E58: Ж | F58: У
A59: ЗАВТРАК | B59: Каша вязкая пшённая молочная | C59: 150 | D59: 5.26 | E59: 6.07 | F59: 21.29 | G59: 159.75 | H59: 1.46 | I59: 96
A60: ЗАВТРАК | B60: Какао с молоком | C60: 200 | D60: 4.08 | E60: 3.54 | F60: 17.58 | G60: 100.00 | H60: 1.59 | I60: 397
A61: ЗАВТРАК | B61: Бутерброд с маслом и сыром | C61: 55 | D61: 4.55 | E61: 6.50 | F61: 14.02 | G61: 130.00 | H61: 0.19 | I61: 3
A62: ИТОГО ПО ПРИЕМУ ПИЩИ: | C62: 405 | D62: =SUM(D59:D61) -> 13.89 | E62: =SUM(E59:E61) -> 16.11 | F62: =SUM(F59:F61) -> 52.89 | G62: =SUM(G59:G61) -> 389.75 | H62: =SUM(H59:H61) -> 3.24
A63: ЗАВТРАК 2 | B63: Сок яблочный | C63: 200 | D63: 0.00 | E63: 0.00 | F63: 22.40 | G63: 90.00 | H63: 6.00 | I63: 399
A64: ИТОГО ПО ПРИЕМУ ПИЩИ: | C64: =SUM(C63) -> 200 | D64: 0.00 | E64: 0.00 | F64: 22.40 | G64: 90.00 | H64: 6.00
A65: ОБЕД | B65: Хлеб ржаной | C65: 50 | D65: 0.76 | E65: 0.55 | F65: 21.95 | G65: 94.00 | H65: 0.00 | I65: 1
A66: ОБЕД | B66: Суп картофельный рыбный с крупой | C66: 180 | D66: 4.89 | E66: 2.03 | F66: 12.97 | G66: 98.10 | H66: 10.08 | I66: 84
A67: ОБЕД | B67: Картофель отварной | C67: 130 | D67: 2.48 | E67: 3.74 | F67: 19.93 | G67: 123.31 | H67: 18.19 | I67: 336
A68: ОБЕД | B68: Печень по-строгановски | C68: 70 | D68: 18.06 | E68: 10.50 | F68: 0.56 | G68: 191.38 | H68: 14.28 | I68: 256
A69: ОБЕД | B69: Салат из отварной моркови с зелёным горошком | C69: 60 | D69: 0.74 | E69: 4.54 | F69: 3.73 | G69: 61.00 | H69: 4.00 | I69: 11
A70: ОБЕД | B70: Компот из изюма и кураги | C70: 180 | D70: 0.29 | E70: 0.00 | F70: 20.70 | G70: 86.00 | H70: 0.87 | I70: 374
A71: ИТОГО ПО ПРИЕМУ ПИЩИ: | C71: =SUM(C65:C70) -> 670 | D71: 27.22 | E71: 21.36 | F71: 79.84 | G71: 653.79 | H71: 47.42
A72: ПОЛДНИК | B72: Кефир | C72: 190 | D72: 5.32 | E72: 4.75 | F72: 7.60 | G72: 95.00 | H72: 1.33 | I72: 401
A73: ПОЛДНИК | B73: Печенье | C73: 20 | D73: 1.62 | E73: 1.74 | F73: 14.70 | G73: 81.40 | H73: 0.00 | I73: 151
A74: ПОЛДНИК | B74: Плоды свежие | C74: 100 | D74: 0.40 | E74: 0.00 | F74: 9.78 | G74: 94.00 | H74: 3.99 | I74: 338
A75: ИТОГО ПО ПРИЕМУ ПИЩИ: | C75: =SUM(C72:C74) -> 310 | D75: 7.34 | E75: 6.49 | F75: 32.08 | G75: 270.40 | H75: 5.32
A76: УЖИН | B76: Голубцы ленивые с мясом | C76: 200 | D76: 17.68 | E76: 11.35 | F76: 25.06 | G76: 273.33 | H76: 25.05 | I76: 298
A77: УЖИН | B77: Чай с сахаром | C77: 200 | D77: 1.68 | E77: 0.00 | F77: 12.57 | G77: 70.20 | H77: 0.00 | I77: 411
A78: УЖИН | B78: Бутерброд с маслом | C78: 50 | D78: 2.81 | E78: 3.97 | F78: 16.96 | G78: 114.66 | H78: 0.00 | I78: 1
A79: ИТОГО ПО ПРИЕМУ ПИЩИ: | C79: 450 | D79: =SUM(D76:D78) -> 22.17 | E79: =SUM(E76:E78) -> 15.32 | F79: =SUM(F76:F78) -> 54.59 | G79: =SUM(G76:G78) -> 458.19 | H79: =SUM(H76:H78) -> 25.05
A80: ИТОГО ЗА ДЕНЬ: | C80: =C79+C75+C71+C64+C62 -> 2035 | D80: 70.62 | E80: 59.28 | F80: 241.80 | G80: 1862.13 | H80: 87.03
A82: День 4
A83: Прием пищи | B83: Наименование блюда | C83: Выход блюда | D83: Пищевые вещества, г | G83: Энергет. ценность, ккал | H83: Витамин С | I83: № рецептуры
D84: Б | E84: Ж | F84: У
A85: ЗАВТРАК | B85: Вермишель на молоке с маслом | C85: 200 | D85: 5.75 | E85: 5.21 | F85: 18.53 | G85: 145.20 | H85: 0.91 | I85: 100
A86: ЗАВТРАК | B86: Кофейный напиток с молоком | C86: 200 | D86: 3.17 | E86: 2.68 | F86: 15.96 | G86: 102.22 | H86: 1.30 | I86: 395
A87: ЗАВТРАК | B87: Бутерброд с маслом | C87: 50 | D87: 2.81 | E87: 3.97 | F87: 16.96 | G87: 114.66 | H87: 0.00 | I87: 1
A88: ИТОГО ПО ПРИЕМУ ПИЩИ: | C88: =SUM(C85:C87) -> 450 | D88: 11.73 | E88: 11.86 | F88: 51.45 | G88: 362.08 | H88: 2.21
A89: ЗАВТРАК 2 | B89: Компот из свежих плодов и ягод | C89: 200 | D89: 0.14 | E89: 10.90 | F89: =10.94*2 -> 21.88 | G89: 90.00 | H89: 0.88 | I89: 372
A90: ИТОГО ПО ПРИЕМУ ПИЩИ: | C90: =SUM(C89) -> 200 | D90: 0.14 | E90: 10.90 | F90: 21.88 | G90: 90.00 | H90: 0.88
A91: ОБЕД | B91: Хлеб ржаной | C91: 50 | D91: 0.76 | E91: 0.55 | F91: 21.95 | G91: 94.00 | H91: 0.00 | I91: 1
A92: ОБЕД | B92: Рассольник ленинградский, с мясом и сметаной | C92: 200 | D92: 4.80 | E92: 6.88 | F92: 22.93 | G92: 145.00 | H92: 5.83 | I92: 33
A93: ОБЕД | B93: Котлета рыбная | C93: 70 | D93: 8.39 | E93: 5.66 | F93: 3.65 | G93: 93.63 | H93: 4.78 | I93: 248
A94: ОБЕД | B94: Пюре картофельное | C94: 150 | D94: 3.40 | E94: 4.38 | F94: 31.10 | G94: 163.40 | H94: 20.17 | I94: 321
A95: ОБЕД | B95: Салат из соленых огурцов с луком | C95: 50 | D95: 0.43 | E95: 2.55 | F95: 1.30 | G95: 29.90 | H95: 2.78 | I95: 20
A96: ОБЕД | B96: Компот из свежих яблок | C96: 200 | D96: 0.18 | E96: 0.18 | F96: 26.53 | G96: 108.44 | H96: 1.91 | I96: 390
A97: ИТОГО ПО ПРИЕМУ ПИЩИ: | C97: =SUM(C91:C96) -> 720 | D97: 19.22 | E97: =SUM(E91:E96) -> 20.20 | F97: =SUM(F91:F96) -> 107.46 | G97: =SUM(G91:G96) -> 634.37 | H97: =SUM(H91:H96) -> 35.46
A98: ПОЛДНИК | B98: Кефир | C98: 190 | D98: 5.32 | E98: 4.75 | F98: 7.60 | G98: 95.00 | H98: 1.33 | I98: 401
A99: ПОЛДНИК | B99: Печенье | C99: 20 | D99: 1.62 | E99: 1.74 | F99: 14.70 | G99: 81.40 | H99: 0.00 | I99: 151
A100: ПОЛДНИК | B100: Плоды свежие | C100: 100 | D100: 0.40 | E100: 0.00 | F100: 9.78 | G100: 94.00 | H100: 3.99 | I100: 338
A101: ИТОГО ПО ПРИЕМУ ПИЩИ: | C101: =SUM(C98:C100) -> 310 | D101: =SUM(D98:D100) -> 7.34 | E101: =SUM(E98:E100) -> 6.49 | F101: 32.08 | G101: 270.40 | H101: =SUM(H98:H100) -> 5.32
A102: УЖИН | B102: Каша гречневая рассыпчатая | C102: 130 | D102: 2.64 | E102: 1.01 | F102: 18.06 | G102: 110.94 | H102: 0.00 | I102: 168
A103: УЖИН | B103: Гуляш из отварного мяса | C103: 80 | D103: 9.21 | E103: 10.86 | F103: 5.67 | G103: 151.66 | H103: 0.74 | I103: 277
A104: УЖИН | B104: Чай с сахаром | C104: 200 | D104: 1.68 | E104: 0.00 | F104: 12.57 | G104: 70.20 | H104: 0.00 | I104: 411
A105: УЖИН | B105: Бутерброд с маслом | C105: 50 | D105: 2.81 | E105: 3.97 | F105: 16.96 | G105: 114.66 | H105: 0.00 | I105: 1
A106: ИТОГО ПО ПРИЕМУ ПИЩИ: | C106: =SUM(C102:C105) -> 460 | D106: 16.34 | E106: 15.84 | F106: 53.26 | G106: 447.46 | H106: 0.74
A107: ИТОГО ЗА ДЕНЬ: | C107: =C106+C101+C97+C90+C88 -> 2140 | D107: 54.76 | E107: 65.29 | F107: 266.13 | G107: 1804.31 | H107: 44.61
A109: День 5
A110: Прием пищи | C110: Выход блюда | D110: Пищевые вещества, г | G110: Энергет.ценность, ккал | H110: Витамин С | I110: № рецептуры
D111: Б | E111: Ж | F111: У
A112: ЗАВТРАК | B112: Каша ячневая вязкая молочная | C112: 150 | D112: 4.98 | E112: 5.69 | F112: 21.10 | G112: 153.00 | H112: 1.46 | I112: 99
A113: ЗАВТРАК | B113: Какао с молоком | C113: 200 | D113: 4.08 | E113: 3.54 | F113: 17.58 | G113: 100.00 | H113: 1.59 | I113: 397
A114: ЗАВТРАК | B114: Бутерброд с маслом и сыром | C114: 55 | D114: 4.55 | E114: 6.50 | F114: 14.02 | G114: 130.00 | H114: 0.19 | I114: 3
A115: ИТОГО ПО ПРИЕМУ ПИЩИ: | C115: =SUM(C112:C114) -> 405 | D115: 13.61 | E115: 15.73 | F115: 52.70 | G115: 383.00 | H115: 3.24
A116: ЗАВТРАК 2 | B116: Сок яблочный | C116: 200 | D116: 0.00 | E116: 0.00 | F116: 22.40 | G116: 90.00 | H116: 6.00 | I116: 399
A117: ИТОГО ПО ПРИЕМУ ПИЩИ: | C117: =SUM(C116) -> 200 | D117: =SUM(D116) -> 0.00 | E117: =SUM(E116) -> 0.00 | F117: =SUM(F116) -> 22.40 | G117: =SUM(G116) -> 90.00 | H117: 3.16
A118: ОБЕД | B118: Хлеб ржаной | C118: 50 | D118: 0.76 | E118: 0.55 | F118: 21.95 | G118: 94.00 | H118: 0.00 | I118: 1
A119: ОБЕД | B119: Свекольник, с мясом и со сметаной | C119: 200 | D119: 4.22 | E119: 6.50 | F119: 11.77 | G119: 145.00 | H119: 9.95 | I119: 34
A120: ОБЕД | B120: Жаркое по домашнему с мясом птицы | C120: 200 | D120: 10.46 | E120: 7.31 | F120: 37.54 | G120: 235.00 | H120: 8.17 | I120: 153
A121: ОБЕД | B121: Салат из квашенной капусты | C121: 50 | D121: 0.40 | E121: 3.99 | F121: 1.20 | G121: 52.77 | H121: 3.36 | I121: 16
A122: ОБЕД | B122: Компот из сушёных фруктов | C122: 180 | D122: 0.44 | E122: 0.02 | F122: 27.77 | G122: 113.00 | H122: 0.40 | I122: 394
C123: =SUM(C118:C122) -> 680 | D123: 16.28 | E123: 18.37 | F123: 100.23 | G123: 639.77 | H123: 21.88
A124: ПОЛДНИК | B124: Кефир | C124: 190 | D124: 5.32 | E124: 4.75 | F124: 7.60 | G124: 95.00 | H124: 1.33 | I124: 401
A125: ПОЛДНИК | B125: Печенье | C125: 20 | D125: 1.62 | E125: 1.74 | F125: 14.70 | G125: 81.40 | H125: 0.00 | I125: 151
A126: ПОЛДНИК | B126: Плоды свежие | C126: 100 | D126: 0.40 | E126: 0.00 | F126: 9.78 | G126: 94.00 | H126: 3.99 | I126: 338
A127: ИТОГО ПО ПРИЕМУ ПИЩИ: | C127: 410 | D127: 7.74 | E127: 6.49 | F127: 41.90 | G127: 270.40 | H127: 21.33
A128: УЖИН | B128: Омлет натуральный с маслом | C128: 150 | D128: 13.87 | E128: 11.05 | F128: 9.69 | G128: 184.62 | H128: 0.45 | I128: 37
A129: УЖИН | B129: Салат из зелёного горошка консервированного | C129: 50 | D129: 1.55 | E129: 2.70 | F129: 3.33 | G129: 43.53 | H129: 5.67 | I129: 10
A130: УЖИН | B130: Чай с сахаром | C130: 180 | D130: 1.51 | E130: 0.00 | F130: 11.32 | G130: 63.18 | H130: 0.00 | I130: 411
A131: УЖИН | B131: Ватрушка с творогом | C131: 80 | D131: 5.60 | E131: 4.30 | F131: 29.78 | G131: 165.30 | H131: 0.30 | I131: 289
A132: ИТОГО ПО ПРИЕМУ ПИЩИ: | C132: =SUM(C128:C131) -> 460 | D132: =SUM(D128:D131) -> 22.53 | E132: 18.05 | F132: 54.12 | G132: 456.63 | H132: 6.42
A133: ИТОГО ЗА ДЕНЬ: | C133: =C132+C127+C123+C117+C115 -> 2155 | D133: 60.16 | E133: 58.64 | F133: 271.35 | G133: 1839.80 | H133: 56.03
A135: День 6
A136: Прием пищи | B136: Наименование блюда | C136: Выход блюда | D136: Пищевые вещества, г | G136: Энергет. ценность, ккал | H136: Витамин С | I136: № рецептуры
D137: Б | E137: Ж | F137: У
A138: ЗАВТРАК | B138: Каша вязкая молочная с хлопьями овсяными "Геркулес" | C138: 180 | D138: 5.72 | E138: 7.66 | F138: 19.67 | G138: 168.30 | H138: 1.76 | I138: 93
A139: ЗАВТРАК | B139: Кофейный напиток с молоком | C139: 200 | D139: 3.17 | E139: 2.68 | F139: 15.96 | G139: 102.22 | H139: 1.30 | I139: 395
A140: ЗАВТРАК | B140: Бутерброд с маслом | C140: 40 | D140: 2.01 | E140: 3.87 | F140: 12.13 | G140: 91.33 | H140: 0.00 | I140: 1
A141: ИТОГО ПО ПРИЕМУ ПИЩИ: | C141: 400 | D141: =SUM(D138:D140) -> 10.90 | E141: =SUM(E138:E140) -> 14.21 | F141: =SUM(F138:F140) -> 47.76 | G141: =SUM(G138:G140) -> 361.85 | H141: =SUM(H138:H140) -> 3.06
A142: ЗАВТРАК 2 | B142: Сок яблочный | C142: 200 | D142: 0.00 | E142: 0.00 | F142: 22.40 | G142: 90.00 | H142: 6.00 | I142: 399
A143: ИТОГО ПО ПРИЕМУ ПИЩИ: | C143: =SUM(C142) -> 200 | D143: 0.00 | E143: 0.00 | F143: 22.40 | G143: 90.00 | H143: 6.00
A144: ОБЕД | B144: Хлеб ржаной | C144: 50 | D144: 0.76 | E144: 0.55 | F144: 21.95 | G144: 94.00 | H144: 0.00 | I144: 1
A145: ОБЕД | B145: Суп крстьянский со сметаной | C145: 180 | D145: 2.16 | E145: 2.22 | F145: 11.66 | G145: 125.33 | H145: 8.00 | I145: 86
A146: ОБЕД | B146: Биточки из говядины | C146: 70 | D146: 8.84 | E146: 11.02 | F146: 5.13 | G146: 125.00 | H146: 0.81 | I146: 161
A147: ОБЕД | B147: Каша гречневая рассыпчаая | C147: 130 | D147: 2.63 | E147: 1.01 | F147: 17.37 | G147: 110.93 | H147: 0.00 | I147: 168
A148: ОБЕД | B148: Салат из свеклы | C148: 50 | D148: 0.71 | E148: 3.04 | F148: 4.18 | G148: 46.95 | H148: 4.75 | I148: 33
A149: ОБЕД | B149: Кисель из свежемороженых ягод | C149: 180 | D149: 0.00 | E149: 0.00 | F149: 8.71 | G149: 129.00 | H149: 20.00 | I149: 233
A150: ИТОГО ПО ПРИЕМУ ПИЩИ: | C150: =SUM(C144:C149) -> 660 | D150: 15.11 | E150: 17.84 | F150: 69.00 | G150: 631.21 | H150: 33.56
A151: ПОЛДНИК | B151: Кефир | C151: 190 | D151: 5.32 | E151: 4.75 | F151: 7.60 | G151: 95.00 | H151: 1.33 | I151: 401
A152: ПОЛДНИК | B152: Печенье | C152: 20 | D152: 1.62 | E152: 1.74 | F152: 14.70 | G152: 81.40 | H152: 0.00 | I152: 151
A153: ПОЛДНИК | B153: Плоды свежие | C153: 100 | D153: 0.40 | E153: 0.00 | F153: 9.78 | G153: 94.00 | H153: 3.99 | I153: 338
A154: ИТОГО ПО ПРИЕМУ ПИЩИ: | C154: =SUM(C151:C153) -> 310 | D154: 7.34 | E154: 6.49 | F154: 32.08 | G154: 270.40 | H154: 5.32
A155: УЖИН | B155: Пудинг из творога | C155: 180 | D155: 8.85 | E155: 6.10 | F155: 25.77 | G155: 232.94 | H155: 0.20 | I155: 235
A156: УЖИН | B156: Соус молочный сладкий | C156: 30 | D156: 0.72 | E156: 2.76 | F156: 3.38 | G156: 21.00 | H156: 0.00 | I156: 350
A157: УЖИН | B157: Чай с сахаром | C157: 200 | D157: 1.68 | E157: 0.00 | F157: 12.58 | G157: 70.20 | H157: 0.00 | I157: 411
A158: УЖИН | B158: Бутерброд с повидлом | C158: 50 | D158: 2.03 | E158: 3.21 | F158: 22.55 | G158: 130.67 | H158: 0.08 | I158: 2
A159: ИТОГО ПО ПРИЕМУ ПИЩИ: | C159: =SUM(C155:C158) -> 460 | D159: 13.28 | E159: 12.07 | F159: 64.28 | G159: 454.81 | H159: 0.28
A160: ИТОГО ЗА ДЕНЬ: | C160: =C159+C154+C150+C143+C141 -> 2030 | D160: 46.62 | E160: 50.61 | F160: 235.51 | G160: 1808.28 | H160: 48.22
A162: День 7
A163: Прием пищи | B163: Наименование блюда | C163: Выход блюда | D163: Пищевые вещества, г | G163: Энергет. ценность, ккал | H163: Витамин С | I163: № рецептуры
D164: Б | E164: Ж | F164: У
A165: ЗАВТРАК | B165: Каша вязкая молочная Дружба | C165: 160 | D165: 4.97 | E165: 6.18 | F165: 22.17 | G165: 160.80 | H165: 1.46 | I165: 84
A166: ЗАВТРАК | B166: Какао с молоком | C166: 200 | D166: 4.08 | E166: 3.54 | F166: 17.58 | G166: 100.00 | H166: 1.59 | I166: 397
A167: ЗАВТРАК | B167: Бутерброд с маслом | C167: 40 | D167: 2.01 | E167: 3.87 | F167: 12.13 | G167: 91.33 | H167: 0.00 | I167: 1
A168: ИТОГО ПО ПРИЕМУ ПИЩИ: | C168: 400 | D168: =SUM(D165:D167) -> 11.06 | E168: =SUM(E165:E167) -> 13.60 | F168: =SUM(F165:F167) -> 51.88 | G168: =SUM(G165:G167) -> 352.13 | H168: =SUM(H165:H167) -> 3.05
A169: ЗАВТРАК 2 | B169: Компот из свежих плодов и ягод | C169: 200 | D169: 0.14 | E169: 10.90 | F169: =10.94*2 -> 21.88 | G169: 90.00 | H169: 0.88 | I169: 372
A170: ИТОГО ПО ПРИЕМУ ПИЩИ: | C170: =SUM(C169) -> 200 | D170: 0.14 | E170: 10.90 | F170: 21.88 | G170: 90.00 | H170: 0.88
A171: ОБЕД | B171: Хлеб ржаной | C171: 50 | D171: 0.76 | E171: 0.55 | F171: 21.95 | G171: 94.00 | H171: 0.00 | I171: 1
A172: ОБЕД | B172: Борщ с мясом | C172: 180 | D172: 7.12 | E172: 5.24 | F172: 9.88 | G172: 115.20 | H172: 12.49 | I172: 68
A173: ОБЕД | B173: Суфле из печени | C173: 70 | D173: 15.50 | E173: 7.00 | F173: 5.30 | G173: 161.60 | H173: 10.40 | I173: 321
A174: ОБЕД | B174: Пюре картофельное | C174: 130 | D174: 2.95 | E174: 3.80 | F174: 26.88 | G174: 141.61 | H174: 17.48 | I174: 394
A175: ОБЕД | B175: Овощи натуральные солёные/кусочком/ | C175: 60 | D175: 0.48 | E175: 0.06 | F175: 1.50 | G175: 8.40 | H175: 6.00 | I175: 20
A176: ОБЕД | B176: Компот из сушёных фруктов | C176: 180 | D176: 0.44 | E176: 0.02 | F176: 27.77 | G176: 113.00 | H176: 0.40 | I176: 390
A177: ИТОГО ПО ПРИЕМУ ПИЩИ: | C177: =SUM(C171:C176) -> 670 | D177: 27.25 | E177: 16.66 | F177: 93.28 | G177: 633.81 | H177: 46.77
A178: ПОЛДНИК | B178: Кефир | C178: 190 | D178: 5.32 | E178: 4.75 | F178: 7.60 | G178: 95.00 | H178: 1.33 | I178: 401
A179: ПОЛДНИК | B179: Печенье | C179: 20 | D179: 1.62 | E179: 1.74 | F179: 14.70 | G179: 81.40 | H179: 0.00 | I179: 151
A180: ПОЛДНИК | B180: Плоды свежие | C180: 100 | D180: 0.40 | E180: 0.00 | F180: 9.78 | G180: 94.00 | H180: 3.99 | I180: 338
A181: ИТОГО ПО ПРИЕМУ ПИЩИ: | C181: =SUM(C178:C180) -> 310 | D181: 7.34 | E181: 6.49 | F181: 32.08 | G181: 270.40 | H181: 5.32
A182: УЖИН | B182: Макароны отварные с сыром | C182: 200 | D182: 11.17 | E182: 10.28 | F182: 31.78 | G182: 264.00 | H182: 0.14 | I182: 220
A183: УЖИН | B183: Чай с сахаром | C183: 200 | D183: 1.68 | E183: 0.00 | F183: 12.57 | G183: 70.20 | H183: 0.00 | I183: 411
A184: УЖИН | B184: Бутерброд с маслом | C184: 50 | D184: 2.81 | E184: 3.97 | F184: 16.96 | G184: 114.66 | H184: 0.00 | I184: 1
A185: ИТОГО ПО ПРИЕМУ ПИЩИ: | C185: =SUM(C182:C184) -> 450 | D185: 15.66 | E185: 14.25 | F185: 61.31 | G185: 448.86 | H185: 0.14
A186: ИТОГО ЗА ДЕНЬ: | C186: =C185+C181+C177+C170+C168 -> 2030 | D186: 61.44 | E186: 61.90 | F186: 260.42 | G186: 1795.20 | H186: 56.16
A188: День 8
A189: Прием пищи | B189: Наименование блюда | C189: Выход блюда | D189: Пищевые вещества, г | G189: Энергет. ценность, ккал | H189: Витамин С | I189: № рецептуры
D190: Б | E190: Ж | F190: У
A191: ЗАВТРАК | B191: Каша вязкая пшеничная молочная | C191: 160 | D191: 5.61 | E191: 6.47 | F191: 22.71 | G191: 170.40 | H191: 1.56 | I191: 91
A192: ЗАВТРАК | B192: Чай с молоком | C192: 200 | D192: 3.07 | E192: 2.60 | F192: 11.46 | G192: 98.89 | H192: 1.33 | I192: 413
A193: ЗАВТРАК | B193: Бутерброд с маслом | C193: 40 | D193: 2.01 | E193: 3.87 | F193: 12.13 | G193: 91.33 | H193: 0.00 | I193: 1
A194: ИТОГО ПО ПРИЕМУ ПИЩИ: | C194: 400 | D194: =SUM(D191:D193) -> 10.69 | E194: =SUM(E191:E193) -> 12.94 | F194: =SUM(F191:F193) -> 46.29 | G194: =SUM(G191:G193) -> 360.62 | H194: =SUM(H191:H193) -> 2.89
A195: ЗАВТРАК 2 | B195: Сок яблочный | C195: 200 | D195: 0.00 | E195: 0.00 | F195: 22.40 | G195: 90.00 | H195: 6.00 | I195: 399
A196: ИТОГО ПО ПРИЕМУ ПИЩИ: | C196: =SUM(C195) -> 200 | D196: 0.00 | E196: 0.00 | F196: 22.40 | G196: 90.00 | H196: 6.00
A197: ОБЕД | B197: Хлеб ржаной | C197: 50 | D197: 0.76 | E197: 0.55 | F197: 21.95 | G197: 94.00 | H197: 0.00 | I197: 1
A198: ОБЕД | B198: Суп картофельный рыбный с крупой | C198: 200 | D198: 5.43 | E198: 2.25 | F198: 14.41 | G198: 109.00 | H198: 11.20 | I198: 84
A199: ОБЕД | B199: Жаркое по-домашнему | C199: 200 | D199: 18.60 | E199: 6.31 | F199: 39.26 | G199: 320.00 | H199: 1.85 | I199: 153
A200: ОБЕД | B200: Салат из солёных огурцов с луком | C200: 50 | D200: 0.43 | E200: 2.55 | F200: 1.30 | G200: 29.90 | H200: 2.78 | I200: 20
A201: ОБЕД | B201: Компот из изюма и кураги | C201: 180 | D201: 0.29 | E201: 0.00 | F201: 20.70 | G201: 86.00 | H201: 0.87 | I201: 374
A202: ИТОГО ПО ПРИЕМУ ПИЩИ: | C202: =SUM(C197:C201) -> 680 | D202: 25.51 | E202: 11.66 | F202: 97.62 | G202: 638.90 | H202: 16.70
A203: ПОЛДНИК | B203: Кефир | C203: 190 | D203: 5.32 | E203: 4.75 | F203: 7.60 | G203: 95.00 | H203: 1.33 | I203: 401
A204: ПОЛДНИК | B204: Печенье | C204: 20 | D204: 1.62 | E204: 1.74 | F204: 14.70 | G204: 81.40 | H204: 0.00 | I204: 151
A205: ПОЛДНИК | B205: Плоды свежие | C205: 100 | D205: 0.40 | E205: 0.00 | F205: 9.78 | G205: 94.00 | H205: 3.99 | I205: 338
A206: ИТОГО ПО ПРИЕМУ ПИЩИ: | C206: =SUM(C203:C205) -> 310 | D206: 7.34 | E206: 6.49 | F206: 32.08 | G206: 270.40 | H206: 5.32
A207: УЖИН | B207: Омлет натуральный с маслом | C207: 150 | D207: 13.87 | E207: 11.05 | F207: 9.69 | G207: 184.62 | H207: 0.45 | I207: 37
A208: УЖИН | B208: Салат из зелёного горошка консервированного | C208: 50 | D208: 1.55 | E208: 2.70 | F208: 3.33 | G208: 43.53 | H208: 5.67 | I208: 10
... 56 more rows

Sheet Ясли
A1: Категория: | B1: Дети до 3-х лет
A3: День 1
A4: Прием пищи | B4: Наименование блюда | C4: Выход блюда | D4: Пищевые вещества, г | G4: Энергет. ценность, ккал | H4: Витамин С | I4: № рецептуры
D5: Б | E5: Ж | F5: У
A6: ЗАВТРАК | B6: Каша вязкая молочная с хлопьями овсяными "Геркулес | C6: 140 | D6: 4.13 | E6: 5.53 | F6: 13.21 | G6: 121.55 | H6: 1.17 | I6: 93
A7: ЗАВТРАК | B7: Чай с молоком | C7: 180 | D7: 2.67 | E7: 2.34 | F7: 10.31 | G7: 89.00 | H7: 1.20 | I7: 413
A8: ЗАВТРАК | B8: Бутерброд с маслом | C8: 30 | D8: 1.51 | E8: 2.90 | F8: 9.10 | G8: 68.50 | H8: 0.00 | I8: 1
A9: ИТОГО ПО ПРИЕМУ ПИЩИ: | C9: 350 | D9: =SUM(D6:D8) -> 8.31 | E9: =SUM(E6:E8) -> 10.77 | F9: =SUM(F6:F8) -> 32.62 | G9: =SUM(G6:G8) -> 279.05 | H9: =SUM(H6:H8) -> 2.37
A10: ЗАВТРАК 2 | B10: Сок яблочный | C10: 150 | D10: 0.00 | E10: 0.00 | F10: 16.80 | G10: 70.00 | H10: 4.50 | I10: 399
A11: ИТОГО ПО ПРИЕМУ ПИЩИ: | C11: =SUM(C10) -> 150 | D11: 0.00 | E11: 0.00 | F11: 16.80 | G11: 70.00 | H11: 4.50
A12: ОБЕД | B12: Хлеб ржаной | C12: 40 | D12: 0.61 | E12: 0.44 | F12: 17.56 | G12: 75.20 | H12: 0.00 | I12: 1
A13: ОБЕД | B13: Щи из свежей капусты на мясом бульоне | C13: 150 | D13: 2.76 | E13: 5.30 | F13: 7.70 | G13: 88.50 | H13: 15.54 | I13: 56
A14: ОБЕД | B14: Плов с мясом говядины | C14: 130 | D14: 12.28 | E14: 10.37 | F14: 21.74 | G14: 228.80 | H14: 0.33 | I14: 304
A15: ОБЕД | B15: Салат из свеклы | C15: 30 | D15: 0.42 | E15: 1.82 | F15: 2.51 | G15: 28.17 | H15: 3.56 | I15: 33
A16: ОБЕД | B16: Компот из сушеных фруктов | C16: 150 | D16: 0.33 | E16: 0.01 | F16: 20.82 | G16: 84.71 | H16: 0.30 | I16: 394
A17: ИТОГО ПО ПРИЕМУ ПИЩИ: | C17: =SUM(C12:C16) -> 500 | D17: 16.40 | E17: 17.94 | F17: 70.32 | G17: 505.38 | H17: 19.73
A18: ПОЛДНИК | B18: Кефир | C18: 150 | D18: 4.20 | E18: 3.75 | F18: 6.00 | G18: 75.00 | H18: 1.12 | I18: 401
A19: ПОЛДНИК | B19: Печенье | C19: 12 | D19: 0.67 | E19: 0.73 | F19: 8.82 | G19: 48.84 | H19: 0.00 | I19: 151
A20: ПОЛДНИК | B20: Плоды свежие | C20: 95 | D20: 0.38 | E20: 0.00 | F20: 9.29 | G20: 89.30 | H20: 3.79 | I20: 338
A21: ИТОГО ПО ПРИЕМУ ПИЩИ: | C21: =SUM(C18:C20) -> 257.0 | D21: 5.25 | E21: 4.48 | F21: 24.11 | G21: =SUM(G18:G20) -> 213.14 | H21: 4.91
A22: УЖИН | B22: Запеканка из творога | C22: 150 | D22: 6.57 | E22: 4.52 | F22: 19.11 | G22: 162.11 | H22: 0.02 | I22: 237
A23: УЖИН | B23: Соус молочный сладкий | C23: 30 | D23: 0.72 | E23: 2.76 | F23: 3.38 | G23: 21.00 | H23: 0.00 | I23: 350
A24: УЖИН | B24: Чай с сахаром | C24: 180 | D24: 1.51 | E24: 0.00 | F24: 11.32 | G24: 63.18 | H24: 0.00 | I24: 411
A25: УЖИН | B25: Бутерброд с повидлом | C25: 40 | D25: 1.62 | E25: 2.57 | F25: 18.04 | G25: 104.54 | H25: 0.06 | I25: 2
A26: ИТОГО ПО ПРИЕМУ ПИЩИ: | C26: =SUM(C22:C25) -> 400 | D26: 10.42 | E26: 9.85 | F26: 51.85 | G26: 350.82 | H26: 0.08
A27: ИТОГО ЗА ДЕНЬ: | C27: =C26+C21+C17+C11+C9 -> 1657 | D27: 40.38 | E27: 43.04 | F27: 195.70 | G27: 1418.39 | H27: 31.59
A29: День 2
A30: Прием пищи | B30: Наименование блюда | C30: Выход блюда | D30: Пищевые вещества, г | G30: Энергет. ценность, ккал | H30: Витамин С | I30: № рецептуры
D31: Б | E31: Ж | F31: У
A32: ЗАВТРАК | B32: Каша вязкая манная молочная | C32: 140 | D32: 4.35 | E32: 5.23 | F32: 17.57 | G32: 114.80 | H32: 1.36 | I32: 88
A33: ЗАВТРАК | B33: Кофейный напиток с молоком | C33: 180 | D33: 2.85 | E33: 2.41 | F33: 14.36 | G33: 91.00 | H33: 1.17 | I33: 395
A34: ЗАВТРАК | B34: Бутерброд с маслом | C34: 30 | D34: 1.51 | E34: 2.90 | F34: 9.10 | G34: 68.50 | H34: 0.00 | I34: 1
A35: ИТОГО ПО ПРИЕМУ ПИЩИ: | C35: 350 | D35: =SUM(D32:D34) -> 8.71 | E35: =SUM(E32:E34) -> 10.54 | F35: =SUM(F32:F34) -> 41.03 | G35: =SUM(G32:G34) -> 274.30 | H35: =SUM(H32:H34) -> 2.53
A36: ЗАВТРАК 2 | B36: Компот из свежих плодов и ягод | C36: 150 | D36: =0.07*1.5 -> 0.11 | E36: =5.45*1.5 -> 8.18 | F36: =10.94*1.5 -> 16.41 | G36: 70.00 | H36: =0.44*1.5 -> 0.66 | I36: 372
A37: ИТОГО ПО ПРИЕМУ ПИЩИ: | C37: =SUM(C36) -> 150 | D37: 0.11 | E37: 8.18 | F37: 16.41 | G37: 70.00 | H37: 0.66
A38: ОБЕД | B38: Хлеб ржаной | C38: 40 | D38: 0.61 | E38: 0.44 | F38: 17.56 | G38: 75.20 | H38: 0.00 | I38: 1
A39: ОБЕД | B39: Суп Полевой с мясом | C39: 150 | D39: 3.60 | E39: 6.86 | F39: 8.25 | G39: 109.14 | H39: 4.78 | I39: 80
A40: ОБЕД | B40: Котлета из говядины | C40: 50 | D40: 6.31 | E40: 7.87 | F40: 3.66 | G40: 96.28 | H40: 0.58 | I40: 161
A41: ОБЕД | B41: Капуста тушеная | C41: 110 | D41: 2.21 | E41: 4.14 | F41: 6.43 | G41: 80.30 | H41: 11.12 | I41: 200
A42: ОБЕД | B42: Икра кабачковая | C42: 40 | D42: 0.48 | E42: 1.88 | F42: 3.08 | G42: 31.20 | H42: 3.82 | I42: 53
A43: ОБЕД | B43: Кисель из свежемороженых ягод | C43: 150 | D43: 0.00 | E43: 0.00 | F43: 6.40 | G43: 97.00 | H43: 15.00 | I43: 233
A44: ИТОГО ПО ПРИЕМУ ПИЩИ: | C44: =SUM(C38:C43) -> 540 | D44: 13.21 | E44: 21.20 | F44: 45.38 | G44: 489.12 | H44: 35.30
A45: ПОЛДНИК | B45: Кефир | C45: 150 | D45: 4.20 | E45: 3.75 | F45: 6.00 | G45: 75.00 | H45: 1.12 | I45: 401
A46: ПОЛДНИК | B46: Печенье | C46: 12 | D46: 0.67 | E46: 0.73 | F46: 8.82 | G46: 48.84 | H46: 0.00 | I46: 151
A47: ПОЛДНИК | B47: Плоды свежие | C47: 95 | D47: 0.38 | E47: 0.00 | F47: 9.29 | G47: 89.30 | H47: 3.79 | I47: 338
A48: ИТОГО ПО ПРИЕМУ ПИЩИ: | C48: =SUM(C45:C47) -> 257 | D48: 5.25 | E48: 4.48 | F48: 24.11 | G48: 213.14 | H48: 4.91
A49: УЖИН | B49: Макароны отварные с маслом | C49: 150 | D49: 4.20 | E49: 1.92 | F49: 31.00 | G49: 138.00 | H49: 0.00 | I49: 10
A50: УЖИН | B50: Яйца варёные | C50: 40 | D50: 5.08 | E50: 4.60 | F50: 0.28 | G50: 63.00 | H50: 0.00 | I50: 213
A51: УЖИН | B51: Чай с сахаром | C51: 170 | D51: 1.43 | E51: 0.00 | F51: 10.69 | G51: 59.67 | H51: 0.00 | I51: 411
A52: УЖИН | B52: Булочка молочная | C52: 40 | D52: 3.77 | E52: 1.26 | F52: 25.83 | G52: 129.14 | H52: 0.11 | I52: 477
A53: ИТОГО ПО ПРИЕМУ ПИЩИ: | C53: =SUM(C49:C52) -> 400 | D53: 14.48 | E53: 7.78 | F53: 67.80 | G53: =SUM(G49:G52) -> 389.81 | H53: 0.11
A54: ИТОГО ЗА ДЕНЬ: | C54: =C53+C48+C44+C37+C35 -> 1697 | D54: 41.76 | E54: 52.17 | F54: 194.73 | G54: 1436.37 | H54: 43.51
A56: День 3
A57: Прием пищи | B57: Наименование блюда | C57: Выход блюда | D57: Пищевые вещества, г | G57: Энергет. ценность, ккал | H57: Витамин С | I57: № рецептуры
D58: Б | E58: Ж | F58: У
A59: ЗАВТРАК | B59: Каша вязкая пшённая молочная | C59: 140 | D59: 4.56 | E59: 5.26 | F59: 17.45 | G59: 118.45 | H59: 1.27 | I59: 96
A60: ЗАВТРАК | B60: Какао с молоком | C60: 170 | D60: 3.47 | E60: 3.01 | F60: 14.94 | G60: 85.00 | H60: 1.35 | I60: 397
A61: ЗАВТРАК | B61: Бутерброд с маслом и сыром | C61: 40 | D61: 3.61 | E61: 5.40 | F61: 9.75 | G61: 83.00 | H61: 0.14 | I61: 1
A62: ИТОГО ПО ПРИЕМУ ПИЩИ: | C62: =SUM(C59:C61) -> 350 | D62: =SUM(D59:D61) -> 11.64 | E62: =SUM(E59:E61) -> 13.67 | F62: =SUM(F59:F61) -> 42.14 | G62: 291.45 | H62: =SUM(H59:H61) -> 2.76
A63: ЗАВТРАК 2 | B63: Сок яблочный | C63: 150 | D63: 0.00 | E63: 0.00 | F63: 16.80 | G63: 70.00 | H63: 4.50 | I63: 399
A64: ИТОГО ПО ПРИЕМУ ПИЩИ: | C64: =SUM(C63) -> 150 | D64: 0 | E64: 0 | F64: 16.8 | G64: 70 | H64: 4.5
A65: ОБЕД | B65: Хлеб ржаной | C65: 40 | D65: 0.61 | E65: 0.44 | F65: 17.56 | G65: 75.20 | H65: 0.00 | I65: 1
A66: ОБЕД | B66: Суп картофельный рыбный с крупой | C66: 150 | D66: 4.07 | E66: 1.68 | F66: 10.80 | G66: 81.75 | H66: 8.40 | I66: 84
A67: ОБЕД | B67: Картофель отварной | C67: 120 | D67: 2.44 | E67: 3.47 | F67: 18.42 | G67: 113.93 | H67: 16.81 | I67: 67
A68: ОБЕД | B68: Печень по-строгановски | C68: 50 | D68: 12.90 | E68: 7.50 | F68: 0.40 | G68: 136.70 | H68: 10.20 | I68: 256
A69: ОБЕД | B69: Салат из отварной моркови с зелёным горошком | C69: 40 | D69: 0.49 | E69: 3.03 | F69: 2.49 | G69: 40.67 | H69: 1.67 | I69: 11
A70: ОБЕД | B70: Компот из изюма и кураги | C70: 150 | D70: 0.21 | E70: 0.00 | F70: 15.52 | G70: 64.00 | H70: 0.87 | I70: 374
A71: ИТОГО ПО ПРИЕМУ ПИЩИ: | C71: =SUM(C65:C70) -> 550 | D71: 20.72 | E71: 16.12 | F71: 65.19 | G71: 512.25 | H71: 37.95
A72: ПОЛДНИК | B72: Кефир | C72: 150 | D72: 4.20 | E72: 3.75 | F72: 6.00 | G72: 75.00 | H72: 1.05 | I72: 401
A73: ПОЛДНИК | B73: Печенье | C73: 12 | D73: 0.67 | E73: 0.73 | F73: 8.82 | G73: 48.84 | H73: 0.00 | I73: 151
A74: ПОЛДНИК | B74: Плоды свежие | C74: 95 | D74: 0.38 | E74: 0.00 | F74: 9.29 | G74: 89.30 | H74: 3.79 | I74: 338
A75: ИТОГО ПО ПРИЕМУ ПИЩИ: | C75: =SUM(C72:C74) -> 257 | D75: 5.25 | E75: 4.48 | F75: 24.11 | G75: 213.14 | H75: 4.84
A76: УЖИН | B76: Голубцы ленивые с мясом | C76: 180 | D76: 15.89 | E76: 10.18 | F76: 22.79 | G76: 246.37 | H76: 22.54 | I76: 315
A77: УЖИН | B77: Чай с сахаром | C77: 180 | D77: 1.51 | E77: 0.00 | F77: 11.32 | G77: 63.18 | H77: 0.00 | I77: 411
A78: УЖИН | B78: Бутерброд маслом | C78: 40 | D78: 2.01 | E78: 3.87 | F78: 12.13 | G78: 91.33 | H78: 0.00 | I78: 1
A79: ИТОГО ПО ПРИЕМУ ПИЩИ: | C79: =SUM(C76:C78) -> 400 | D79: =SUM(D76:D78) -> 19.41 | E79: 14.05 | F79: 46.23 | G79: 400.88 | H79: 22.54
A80: ИТОГО ЗА ДЕНЬ: | C80: =C79+C75+C71+C64+C62 -> 1707 | D80: 57.02 | E80: 48.32 | F80: 194.47 | G80: 1487.72 | H80: 72.59
A82: День 4
A83: Прием пищи | B83: Наименование блюда | C83: Выход блюда | D83: Пищевые вещества, г | G83: Энергет. ценность, ккал | H83: Витамин С | I83: № рецептуры
D84: Б | E84: Ж | F84: У
A85: ЗАВТРАК | B85: Вермишель на молоке с маслом | C85: 150 | D85: 4.31 | E85: 3.90 | F85: 14.12 | G85: 118.90 | H85: 0.68 | I85: 100
A86: ЗАВТРАК | B86: Кофейный напиток с молоком | C86: 180 | D86: 2.85 | E86: 2.41 | F86: 14.36 | G86: 91.00 | H86: 1.17 | I86: 395
A87: ЗАВТРАК | B87: Бутерброд с маслом | C87: 30 | D87: 1.51 | E87: 2.90 | F87: 9.10 | G87: 68.50 | H87: 0.00 | I87: 1
A88: ИТОГО ПО ПРИЕМУ ПИЩИ: | C88: =SUM(C85:C87) -> 360 | D88: 8.67 | E88: 9.21 | F88: 37.58 | G88: 278.40 | H88: 1.85
A89: ЗАВТРАК 2 | B89: Компот из свежих плодов и ягод | C89: 150 | D89: =0.07*1.5 -> 0.11 | E89: =5.45*1.5 -> 8.18 | F89: =10.94*1.5 -> 16.41 | G89: 70.00 | H89: =0.44*1.5 -> 0.66 | I89: 372
A90: ИТОГО ПО ПРИЕМУ ПИЩИ: | C90: =SUM(C89) -> 150 | D90: 0.11 | E90: 8.18 | F90: 16.41 | G90: 70.00 | H90: 0.66
A91: ОБЕД | B91: Хлеб ржаной | C91: 40 | D91: 0.61 | E91: 0.44 | F91: 17.56 | G91: 75.20 | H91: 0.00 | I91: 1
A92: ОБЕД | B92: Рассольник ленинградский, с мясом и сметаной | C92: 150 | D92: 3.50 | E92: 5.16 | F92: 17.19 | G92: 116.00 | H92: 4.41 | I92: 33
A93: ОБЕД | B93: Котлета рыбная | C93: 60 | D93: 7.98 | E93: 5.90 | F93: 3.63 | G93: 81.00 | H93: 4.04 | I93: 248
A94: ОБЕД | B94: Пюре картофельное | C94: 110 | D94: 2.72 | E94: 3.50 | F94: 21.80 | G94: 120.00 | H94: 14.79 | I94: 321
A95: ОБЕД | B95: Салат из солёных огурцов с луком | C95: 40 | D95: 0.34 | E95: 2.04 | F95: 1.04 | G95: 23.92 | H95: 2.22 | I95: 20
A96: ОБЕД | B96: Компот из свежих яблок | C96: 150 | D96: 0.12 | E96: 0.12 | F96: 17.90 | G96: 73.16 | H96: 1.29 | I96: 390
A97: ИТОГО ПО ПРИЕМУ ПИЩИ: | C97: =SUM(C91:C96) -> 550 | D97: 15.27 | E97: 17.16 | F97: 79.12 | G97: 489.28 | H97: 26.75
A98: ПОЛДНИК | B98: Кефир | C98: 150 | D98: 4.20 | E98: 3.75 | F98: 6.00 | G98: 75.00 | H98: 1.05 | I98: 401
A99: ПОЛДНИК | B99: Печенье | C99: 12 | D99: 0.67 | E99: 0.73 | F99: 8.82 | G99: 48.84 | H99: 0.00 | I99: 151
A100: ПОЛДНИК | B100: Плоды свежие | C100: 95 | D100: 0.38 | E100: 0.00 | F100: 9.29 | G100: 89.30 | H100: 3.79 | I100: 338
A101: ИТОГО ПО ПРИЕМУ ПИЩИ: | C101: =SUM(C98:C100) -> 257 | D101: 5.25 | E101: 4.48 | F101: 24.11 | G101: 213.14 | H101: 4.84
A102: УЖИН | B102: Каша гречневая рассыпчатая | C102: 120 | D102: 2.42 | E102: 1.22 | F102: 14.28 | G102: 101.45 | H102: 0.00 | I102: 168
A103: УЖИН | B103: Гуляш из отварного мяса | C103: 60 | D103: 6.91 | E103: 8.14 | F103: 4.95 | G103: 105.74 | H103: 0.40 | I103: 277
A104: УЖИН | B104: Чай с сахаром | C104: 180 | D104: 1.51 | E104: 0.00 | F104: 11.32 | G104: 63.18 | H104: 0.00 | I104: 411
A105: УЖИН | B105: Бутерброд с маслом | C105: 40 | D105: 2.01 | E105: 3.87 | F105: 12.13 | G105: 91.33 | H105: 0.00 | I105: 1
C106: 400 | D106: =SUM(D102:D105) -> 12.85 | E106: =SUM(E102:E105) -> 13.23 | F106: =SUM(F102:F105) -> 42.68 | G106: =SUM(G102:G105) -> 361.70 | H106: =SUM(H102:H105) -> 0.40
A107: ИТОГО ЗА ДЕНЬ: | C107: =C106+C101+C97+C90+C88 -> 1717.00 | D107: 42.14 | E107: 52.26 | F107: 199.90 | G107: 1412.52 | H107: 34.50
A109: День 5
A110: Прием пищи | B110: Наименование блюда | C110: Выход блюда | D110: Пищевые вещества, г | G110: Энергет. ценность, ккал | H110: Витамин С | I110: № рецептуры
D111: Б | E111: Ж | F111: У
A112: ЗАВТРАК | B112: Каша вязкая ячневая молочная | C112: 140 | D112: 4.65 | E112: 5.31 | F112: 19.70 | G112: 121.26 | H112: 1.36 | I112: 99
A113: ЗАВТРАК | B113: Какао с молоком | C113: 170 | D113: 3.47 | E113: 3.01 | F113: 14.94 | G113: 85.00 | H113: 1.35 | I113: 397
A114: ЗАВТРАК | B114: Бутерброд с маслом и сыром | C114: 40 | D114: 3.61 | E114: 5.40 | F114: 9.75 | G114: 83.00 | H114: 0.14 | I114: 3
A115: ИТОГО ПО ПРИЕМУ ПИЩИ: | C115: =SUM(C112:C114) -> 350 | D115: 11.73 | E115: 13.72 | F115: 44.39 | G115: 289.26 | H115: 2.85
A116: ЗАВТРАК 2 | B116: Сок яблочный | C116: 150 | D116: 0.00 | E116: 0.00 | F116: 16.80 | G116: 70.00 | H116: 4.50 | I116: 399
A117: ИТОГО ПО ПРИЕМУ ПИЩИ: | C117: =SUM(C116) -> 150 | D117: 0.00 | E117: 0.00 | F117: 16.80 | G117: 70.00 | H117: 4.50
A118: ОБЕД | B118: Хлеб ржаной | C118: 40 | D118: 0.61 | E118: 0.44 | F118: 17.56 | G118: 75.20 | H118: 0.00 | I118: 1
A119: ОБЕД | B119: Свекольник, с мясом и со сметаной | C119: 150 | D119: 3.88 | E119: 5.20 | F119: 7.27 | G119: 116.11 | H119: 7.97 | I119: 34
A120: ОБЕД | B120: Жаркое по-домашнему с мясом птицы | C120: 150 | D120: 6.04 | E120: 2.48 | F120: 24.00 | G120: 167.92 | H120: 3.11 | I120: 153
A121: ОБЕД | B121: Салат из квашеной капусты | C121: 40 | D121: 0.32 | E121: 3.19 | F121: 0.96 | G121: 42.21 | H121: 2.68 | I121: 16
A122: ОБЕД | B122: Компот из сушёных фруктов | C122: 160 | D122: 0.35 | E122: 0.01 | F122: 22.21 | G122: 90.36 | H122: 0.32 | I122: 394
A123: ИТОГО ПО ПРИЕМУ ПИЩИ: | C123: =SUM(C118:C122) -> 540 | D123: 11.20 | E123: 11.32 | F123: 72.00 | G123: 491.79 | H123: 14.08
A124: ПОЛДНИК | B124: Кефир | C124: 150 | D124: 4.20 | E124: 3.75 | F124: 6.00 | G124: 75.00 | H124: 1.05 | I124: 401
A125: ПОЛДНИК | B125: Печенье | C125: 12 | D125: 0.67 | E125: 0.73 | F125: 8.82 | G125: 48.84 | H125: 0.00 | I125: 151
A126: ПОЛДНИК | B126: Плоды свежие | C126: 95 | D126: 0.38 | E126: 0.00 | F126: 9.29 | G126: 89.30 | H126: 3.79 | I126: 338
A127: ИТОГО ПО ПРИЕМУ ПИЩИ: | C127: =SUM(C124:C126) -> 257.00 | D127: 5.25 | E127: 4.48 | F127: 24.11 | G127: 213.14 | H127: 4.84
A128: УЖИН | B128: Омлет натуральный с маслом | C128: 140 | D128: 12.94 | E128: 10.32 | F128: 9.05 | G128: 172.31 | H128: 0.42 | I128: 37
A129: УЖИН | B129: Салат из горошка зелёного консервированного | C129: 30 | D129: 0.93 | E129: 1.62 | F129: 2.00 | G129: 26.12 | H129: 3.40 | I129: 10
A130: УЖИН | B130: Чай с сахаром | C130: 180 | D130: 1.51 | E130: 0.00 | F130: 11.32 | G130: 63.18 | H130: 0.00 | I130: 411
A131: УЖИН | B131: Ватрушка с творогом | C131: 50 | D131: 3.50 | E131: 2.68 | F131: 20.28 | G131: 102.83 | H131: 0.22 | I131: 289
A132: ИТОГО ПО ПРИЕМУ ПИЩИ: | C132: =SUM(C128:C131) -> 400 | D132: 18.88 | E132: 14.62 | F132: 42.65 | G132: 364.44 | H132: 4.04
A133: ИТОГО ЗА ДЕНЬ: | C133: =C132+C127+C123+C117+C115 -> 1697 | D133: 47.06 | E133: 44.15 | F133: 199.94 | G133: 1428.63 | H133: 30.31
A135: День 6
A136: Прием пищи | B136: Наименование блюда | C136: Выход блюда | D136: Пищевые вещества, г | G136: Энергет. ценность, ккал | H136: Витамин С | I136: № рецептуры
D137: Б | E137: Ж | F137: У
A138: ЗАВТРАК | B138: Каша вязкая молочная с хлопьями овсяными "Геркулес" | C138: 140 | D138: 4.13 | E138: 5.53 | F138: 13.21 | G138: 121.55 | H138: 1.17 | I138: 93
A139: ЗАВТРАК | B139: Кофейный напиток с молоком | C139: 180 | D139: 2.85 | E139: 2.41 | F139: 14.36 | G139: 91.00 | H139: 1.17 | I139: 395
A140: ЗАВТРАК | B140: Бутерброд с маслом | C140: 30 | D140: 1.51 | E140: 2.90 | F140: 9.10 | G140: 68.50 | H140: 0.00 | I140: 1
A141: ИТОГО ПО ПРИЕМУ ПИЩИ: | C141: =SUM(C138:C140) -> 350 | D141: 8.49 | E141: 10.84 | F141: 36.67 | G141: 281.05 | H141: 2.34
A142: ЗАВТРАК 2 | B142: Сок яблочный | C142: 150 | D142: 0.00 | E142: 0.00 | F142: 16.80 | G142: 70.00 | H142: 4.50 | I142: 399
A143: ИТОГО ПО ПРИЕМУ ПИЩИ: | C143: =SUM(C142) -> 150 | D143: 0.00 | E143: 0.00 | F143: 16.80 | G143: 70.00 | H143: 4.50
A144: ОБЕД | B144: Хлеб ржаной | C144: 40 | D144: 0.61 | E144: 0.44 | F144: 17.56 | G144: 75.20 | H144: 0.00 | I144: 1
A145: ОБЕД | B145: Суп крестьянский со сметаной | C145: 150 | D145: 1.80 | E145: 1.85 | F145: 9.72 | G145: 104.44 | H145: 6.67 | I145: 86
A146: ОБЕД | B146: Биточки из говядины | C146: 50 | D146: 6.31 | E146: 7.87 | F146: 3.66 | G146: 96.28 | H146: 0.58 | I146: 161
A147: ОБЕД | B147: Каша гречневая рассыпчатая | C147: 110 | D147: 2.22 | E147: 0.85 | F147: 14.28 | G147: 93.00 | H147: 0.00 | I147: 168
A148: ОБЕД | B148: Салат из свеклы | C148: 30 | D148: 0.42 | E148: 1.82 | F148: 2.51 | G148: 28.17 | H148: 3.56 | I148: 33
A149: ОБЕД | B149: Кисель из свежемороженых ягод | C149: 150 | D149: 0.00 | E149: 0.00 | F149: 6.40 | G149: 97.00 | H149: 15.00 | I149: 233
A150: ИТОГО ПО ПРИЕМУ ПИЩИ: | C150: =SUM(C144:C149) -> 530 | D150: =SUM(D144:D149) -> 11.36 | E150: 12.83 | F150: 54.12 | G150: 494.09 | H150: 25.80916667
A151: ПОЛДНИК | B151: Кефир | C151: 150 | D151: 4.20 | E151: 3.75 | F151: 6.00 | G151: 75.00 | H151: 1.05 | I151: 401
A152: ПОЛДНИК | B152: Печенье | C152: 12 | D152: 0.67 | E152: 0.73 | F152: 8.82 | G152: 48.84 | H152: 0.00 | I152: 151
A153: ПОЛДНИК | B153: Плоды свежие | C153: 95 | D153: 0.38 | E153: 0.00 | F153: 9.29 | G153: 89.30 | H153: 3.79 | I153: 338
A154: ИТОГО ПО ПРИЕМУ ПИЩИ: | C154: =SUM(C151:C153) -> 257 | D154: 5.25 | E154: 4.48 | F154: 24.11 | G154: 213.14 | H154: 4.84
A155: УЖИН | B155: Пудинг из творога | C155: 150 | D155: 6.57 | E155: 4.52 | F155: 19.11 | G155: 162.11 | H155: 0.14 | I155: 237
A156: УЖИН | B156: Соус молочный сладкий | C156: 30 | D156: 0.72 | E156: 2.76 | F156: 3.38 | G156: 21.00 | H156: 0.00 | I156: 350
A157: УЖИН | B157: Чай с сахаром | C157: 180 | D157: 1.51 | E157: 0.00 | F157: 9.43 | G157: 63.18 | H157: 0.00 | I157: 411
A158: УЖИН | B158: Бутерброд с повидлом | C158: 40 | D158: 1.62 | E158: 2.57 | F158: 18.04 | G158: 104.54 | H158: 0.06 | I158: 2
A159: ИТОГО ПО ПРИЕМУ ПИЩИ: | C159: 400 | D159: =SUM(D155:D158) -> 10.42 | E159: =SUM(E155:E158) -> 9.85 | F159: =SUM(F155:F158) -> 49.96 | G159: =SUM(G155:G158) -> 350.83 | H159: =SUM(H155:H158) -> 0.20
A160: ИТОГО ЗА ДЕНЬ: | C160: =C159+C154+C150+C143+C141 -> 1687.00 | D160: 35.52 | E160: 38.01 | F160: 181.66 | G160: 1409.11 | H160: 37.69
A162: День 7
A163: Прием пищи | B163: Наименование блюда | C163: Выход блюда | D163: Пищевые вещества, г | G163: Энергет. ценность, ккал | H163: Витамин С | I163: № рецептуры
D164: Б | E164: Ж | F164: У
A165: ЗАВТРАК | B165: Каша вязкая молочная Дружба | C165: 140 | D165: 4.35 | E165: 5.40 | F165: 18.32 | G165: 119.16 | H165: 1.36 | I165: 84
A166: ЗАВТРАК | B166: Какао с молоком | C166: 180 | D166: 3.67 | E166: 3.19 | F166: 15.82 | G166: 90.00 | H166: 1.43 | I166: 397
A167: ЗАВТРАК | B167: Бутерброд с маслом | C167: 30 | D167: 1.51 | E167: 2.90 | F167: 9.10 | G167: 68.50 | H167: 0.00 | I167: 1
A168: ИТОГО ПО ПРИЕМУ ПИЩИ: | C168: =SUM(C165:C167) -> 350 | D168: =SUM(D165:D167) -> 9.53 | E168: =SUM(E165:E167) -> 11.49 | F168: =SUM(F165:F167) -> 43.24 | G168: =SUM(G165:G167) -> 277.66 | H168: 2.57
A169: ЗАВТРАК 2 | B169: Компот из свежих плодов и ягод | C169: 150 | D169: =0.07*1.5 -> 0.11 | E169: =5.45*1.5 -> 8.18 | F169: =10.94*1.5 -> 16.41 | G169: 70.00 | H169: =0.44*1.5 -> 0.66 | I169: 372
A170: ИТОГО ПО ПРИЕМУ ПИЩИ: | C170: =SUM(C169) -> 150 | D170: 0.105 | E170: 8.175 | F170: 16.41 | G170: 70 | H170: 0.66
A171: ОБЕД | B171: Хлеб ржаной | C171: 40 | D171: 0.61 | E171: 0.44 | F171: 17.56 | G171: 75.20 | H171: 0.00 | I171: 1
A172: ОБЕД | B172: Борщ с мясом | C172: 150 | D172: 5.94 | E172: 4.36 | F172: 8.24 | G172: 96.00 | H172: 9.37 | I172: 68
A173: ОБЕД | B173: Суфле из печени | C173: 50 | D173: 11.07 | E173: 5.00 | F173: 3.79 | G173: 115.43 | H173: 7.43 | I173: 321
A174: ОБЕД | B174: Пюре картофельное | C174: 110 | D174: 2.72 | E174: 3.50 | F174: 21.80 | G174: 120.00 | H174: 14.79 | I174: 321
A175: ОБЕД | B175: Овощи натуральные солёные/кусочком/ | C175: 40 | D175: 0.36 | E175: 0.05 | F175: 1.13 | G175: 6.30 | H175: 4.50 | I175: 20
A176: ОБЕД | B176: Компот из сушёных фруктов | C176: 150 | D176: 0.33 | E176: 0.01 | F176: 20.82 | G176: 84.71 | H176: 0.30 | I176: 394
A177: ИТОГО ПО ПРИЕМУ ПИЩИ: | C177: =SUM(C171:C176) -> 540 | D177: 21.03 | E177: 13.36 | F177: 73.34 | G177: 497.64 | H177: 36.39
A178: ПОЛДНИК | B178: Кефир | C178: 150 | D178: 4.20 | E178: 3.75 | F178: 6.00 | G178: 75.00 | H178: 1.05 | I178: 401
A179: ПОЛДНИК | B179: Печенье | C179: 12 | D179: 0.67 | E179: 0.73 | F179: 8.82 | G179: 48.84 | H179: 0.00 | I179: 151
A180: ПОЛДНИК | B180: Плоды свежие | C180: 95 | D180: 0.38 | E180: 0.00 | F180: 9.29 | G180: 89.30 | H180: 3.79 | I180: 338
A181: ИТОГО ПО ПРИЕМУ ПИЩИ: | C181: =SUM(C178:C180) -> 257 | D181: 5.25 | E181: 4.48 | F181: 24.11 | G181: 213.14 | H181: 4.84
A182: УЖИН | B182: Макароны отварные с сыром | C182: 180 | D182: 11.15 | E182: 12.01 | F182: 27.25 | G182: 261.60 | H182: 0.17 | I182: 220
A183: УЖИН | B183: Чай с сахаром | C183: 180 | D183: 1.51 | E183: 0.00 | F183: 11.32 | G183: 63.18 | H183: 0.00 | I183: 411
A184: УЖИН | B184: Бутерброд с маслом | C184: 40 | D184: 2.01 | E184: 3.87 | F184: 12.13 | G184: 91.33 | H184: 0.00 | I184: 1
A185: ИТОГО ПО ПРИЕМУ ПИЩИ: | C185: =SUM(C182:C184) -> 400 | D185: 14.67 | E185: 15.88 | F185: 50.70 | G185: 416.11 | H185: 0.17
A186: ИТОГО ЗА ДЕНЬ: | C186: =C185+C181+C177+C170+C168 -> 1697 | D186: 50.59 | E186: 53.39 | F186: 207.80 | G186: 1474.55 | H186: 44.63
A188: День 8
A189: Прием пищи | C189: Выход блюда | D189: Пищевые вещества, г | G189: Энергет. ценность, ккал | H189: Витамин С | I189: № рецептуры
D190: Б | E190: Ж | F190: У
A191: ЗАВТРАК | B191: Каша вязкая пшеничная молочная | C191: 140 | D191: 4.56 | E191: 5.26 | F191: 17.45 | G191: 118.45 | H191: 1.27 | I191: 91
A192: ЗАВТРАК | B192: Чай с молоком | C192: 180 | D192: 2.67 | E192: 2.34 | F192: 10.31 | G192: 89.00 | H192: 1.20 | I192: 413
A193: ЗАВТРАК | B193: Бутерброд с маслом | C193: 30 | D193: 1.51 | E193: 2.90 | F193: 9.10 | G193: 68.50 | H193: 0.00 | I193: 1
A194: ИТОГО ПО ПРИЕМУ ПИЩИ: | C194: =SUM(C191:C193) -> 350 | D194: 8.74 | E194: 10.50 | F194: 36.86 | G194: 275.95 | H194: 2.47
A195: ЗАВТРАК 2 | B195: Сок яблочный | C195: 150 | D195: 0.00 | E195: 0.00 | F195: 16.80 | G195: 70.00 | H195: 4.50 | I195: 399
A196: ИТОГО ПО ПРИЕМУ ПИЩИ: | C196: =SUM(C195) -> 150 | D196: 0.00 | E196: 0.00 | F196: 16.80 | G196: 70.00 | H196: 4.50
A197: ОБЕД | B197: Хлеб ржаной | C197: 40 | D197: 0.61 | E197: 0.44 | F197: 17.56 | G197: 75.20 | H197: 0.00 | I197: 1
A198: ОБЕД | B198: Суп картофельный рыбный с крупой | C198: 180 | D198: 4.88 | E198: 2.02 | F198: 12.96 | G198: 98.10 | H198: 9.08 | I198: 84
A199: ОБЕД | B199: Жаркое по-домашнему | C199: 150 | D199: 16.53 | E199: 4.33 | F199: 33.19 | G199: 215.63 | H199: 0.25 | I199: 153
A200: ОБЕД | B200: Салат из солёных огурцов с луком | C200: 40 | D200: 0.34 | E200: 2.04 | F200: 1.04 | G200: 23.95 | H200: 2.22 | I200: 20
A201: ОБЕД | B201: Компот из изюма и кураги | C201: 180 | D201: 0.25 | E201: 0.00 | F201: 18.62 | G201: 76.80 | H201: 1.04 | I201: 374
A202: ИТОГО ПО ПРИЕМУ ПИЩИ: | C202: =SUM(C197:C201) -> 590 | D202: 22.62 | E202: 8.83 | F202: 83.37 | G202: 489.68 | H202: 12.59
A203: ПОЛДНИК | B203: Кефир | C203: 150 | D203: 4.20 | E203: 3.75 | F203: 6.00 | G203: 75.00 | H203: 1.05 | I203: 401
A204: ПОЛДНИК | B204: Печенье | C204: 12 | D204: 0.67 | E204: 0.73 | F204: 8.82 | G204: 48.84 | H204: 0.00 | I204: 151
A205: ПОЛДНИК | B205: Плоды свежие | C205: 95 | D205: 0.38 | E205: 0.00 | F205: 9.29 | G205: 89.30 | H205: 3.79 | I205: 338
A206: ИТОГО ПО ПРИЕМУ ПИЩИ: | C206: =SUM(C203:C205) -> 257 | D206: 5.25 | E206: 4.48 | F206: 24.11 | G206: 213.14 | H206: 4.84
A207: УЖИН | B207: Омлет натуральный с маслом | C207: 140 | D207: 12.94 | E207: 10.32 | F207: 9.05 | G207: 172.31 | H207: 0.42 | I207: 37
A208: УЖИН | B208: Салат из зелёного горошка консервированного | C208: 40 | D208: 1.24 | E208: 2.16 | F208: 2.67 | G208: 34.83 | H208: 4.53 | I208: 10
... 57 more rows
